[Event "*** Titled Tuesday Blitz"]
[Site "Chess.com"]
[Date "2020.04.21"]
[Round "1"]
[White "SPEEDSKATER"]
[Black "adricalderon8"]
[Result "1/2-1/2"]
[WhiteElo "2778"]
[BlackElo "2419"]
[TimeControl "180+1"]
[EndTime "10:08:36 PDT"]
[Termination "Game drawn - insufficient material"]

1. d4 {[%clk 0:03:00.9]} 1... Nf6 {[%clk 0:02:59.6]} 2. c4 {[%clk 0:02:58]} 2...
g6 {[%clk 0:02:59.2]} 3. Nc3 {[%clk 0:02:57.6]} 3... d5 {[%clk 0:02:57.9]} 4.
Nf3 {[%clk 0:02:57.4]} 4... Bg7 {[%clk 0:02:57]} 5. Qb3 {[%clk 0:02:57.9]} 5...
dxc4 {[%clk 0:02:56.4]} 6. Qxc4 {[%clk 0:02:58.8]} 6... O-O {[%clk 0:02:56.6]}
7. e4 {[%clk 0:02:58]} 7... a6 {[%clk 0:02:56.7]} 8. Be2 {[%clk 0:02:57.7]} 8...
b5 {[%clk 0:02:56.9]} 9. Qb3 {[%clk 0:02:58.2]} 9... Bb7 {[%clk 0:02:57.8]} 10.
e5 {[%clk 0:02:56.5]} 10... Nd5 {[%clk 0:02:57.3]} 11. O-O {[%clk 0:02:55.9]}
11... Nxc3 {[%clk 0:02:47.9]} 12. Qxc3 {[%clk 0:02:52.8]} 12... Nd7 {[%clk
0:02:48.3]} 13. a4 {[%clk 0:02:34.3]} 13... Nb6 {[%clk 0:02:28.9]} 14. axb5
{[%clk 0:02:20.2]} 14... axb5 {[%clk 0:02:29.7]} 15. Rxa8 {[%clk 0:02:13]} 15...
Qxa8 {[%clk 0:02:28.5]} 16. Qxc7 {[%clk 0:02:04.8]} 16... Nd5 {[%clk 0:02:27.3]}
17. Qc2 {[%clk 0:02:02.8]} 17... b4 {[%clk 0:02:26.8]} 18. Bd2 {[%clk
0:01:59.7]} 18... Rc8 {[%clk 0:02:26.5]} 19. Qb3 {[%clk 0:01:58.4]} 19... Qa7
{[%clk 0:02:00.3]} 20. h4 {[%clk 0:01:54.3]} 20... h6 {[%clk 0:01:59.4]} 21. Kh2
{[%clk 0:01:48.4]} 21... e6 {[%clk 0:01:58.1]} 22. Rc1 {[%clk 0:01:43.9]} 22...
Rxc1 {[%clk 0:01:57]} 23. Bxc1 {[%clk 0:01:44.8]} 23... Qb6 {[%clk 0:01:52.5]}
24. Bd2 {[%clk 0:01:42.5]} 24... Bf8 {[%clk 0:01:51.9]} 25. Qc2 {[%clk 0:01:41]}
25... Kg7 {[%clk 0:01:48.3]} 26. Qc1 {[%clk 0:01:39.4]} 26... Kh7 {[%clk
0:01:42.3]} 27. Qc2 {[%clk 0:01:36.6]} 27... Ne7 {[%clk 0:01:30.7]} 28. h5
{[%clk 0:01:35.5]} 28... Nf5 {[%clk 0:01:27.7]} 29. hxg6+ {[%clk 0:01:28.9]}
29... fxg6 {[%clk 0:01:27.8]} 30. Be3 {[%clk 0:01:25.1]} 30... Qc6 {[%clk
0:01:21.5]} 31. Qxc6 {[%clk 0:01:19.1]} 31... Bxc6 {[%clk 0:01:22.4]} 32. Bc4
{[%clk 0:01:18.3]} 32... Bd7 {[%clk 0:01:16.6]} 33. Nd2 {[%clk 0:01:15.6]} 33...
Kg7 {[%clk 0:01:06.5]} 34. Ne4 {[%clk 0:01:13.9]} 34... Kf7 {[%clk 0:01:06.9]}
35. Nc5 {[%clk 0:01:09.7]} 35... Bc8 {[%clk 0:01:05.5]} 36. Nb3 {[%clk
0:00:56.6]} 36... h5 {[%clk 0:01:02.9]} 37. Bd2 {[%clk 0:00:54.7]} 37... Ke8
{[%clk 0:00:51.9]} 38. f3 {[%clk 0:00:48.4]} 38... h4 {[%clk 0:00:48.8]} 39. Kh3
{[%clk 0:00:46.4]} 39... Kd7 {[%clk 0:00:48.7]} 40. Kg4 {[%clk 0:00:45.8]} 40...
Be7 {[%clk 0:00:49]} 41. d5 {[%clk 0:00:42.3]} 41... exd5 {[%clk 0:00:45.9]} 42.
Bxd5 {[%clk 0:00:41.9]} 42... Kc7 {[%clk 0:00:44.8]} 43. Kf4 {[%clk 0:00:35.1]}
43... Ba6 {[%clk 0:00:35]} 44. Kg4 {[%clk 0:00:20.8]} 44... Bc8 {[%clk
0:00:31.4]} 45. e6 {[%clk 0:00:20]} 45... Kd6 {[%clk 0:00:30.5]} 46. Bc4 {[%clk
0:00:20.3]} 46... Kc7 {[%clk 0:00:20.7]} 47. Bg5 {[%clk 0:00:19.3]} 47... Kd6
{[%clk 0:00:19.3]} 48. Bxe7+ {[%clk 0:00:19]} 48... Kxe7 {[%clk 0:00:19.5]} 49.
Kg5 {[%clk 0:00:19]} 49... Bxe6 {[%clk 0:00:18]} 50. Bxe6 {[%clk 0:00:18.7]}
50... Kxe6 {[%clk 0:00:18.9]} 51. Kxg6 {[%clk 0:00:12.7]} 51... Ne3 {[%clk
0:00:19.1]} 52. Kg5 {[%clk 0:00:13.1]} 52... Nxg2 {[%clk 0:00:18.8]} 53. Kg4
{[%clk 0:00:14]} 53... Kd5 {[%clk 0:00:19.3]} 54. f4 {[%clk 0:00:12.1]} 54...
Ke4 {[%clk 0:00:17.6]} 55. Nd2+ {[%clk 0:00:11.6]} 55... Kd3 {[%clk 0:00:17.4]}
56. Nf1 {[%clk 0:00:12]} 56... Nxf4 {[%clk 0:00:13.2]} 57. Kxf4 {[%clk
0:00:12.9]} 57... Kc2 {[%clk 0:00:14]} 58. Kg4 {[%clk 0:00:12.9]} 58... Kxb2
{[%clk 0:00:14.1]} 59. Kxh4 {[%clk 0:00:13.4]} 59... Kc3 {[%clk 0:00:12.4]} 60.
Ne3 {[%clk 0:00:13.9]} 60... b3 {[%clk 0:00:12.5]} 61. Kg3 {[%clk 0:00:13.4]}
61... Kd3 {[%clk 0:00:12.6]} 62. Nd1 {[%clk 0:00:13.5]} 62... Kc2 {[%clk
0:00:11.9]} 63. Ne3+ {[%clk 0:00:13.5]} 63... Kd2 {[%clk 0:00:12.4]} 64. Nc4+
{[%clk 0:00:13.4]} 64... Kc3 {[%clk 0:00:13]} 65. Na3 {[%clk 0:00:13.5]} 65...
b2 {[%clk 0:00:12.8]} 66. Kf3 {[%clk 0:00:13.4]} 66... Kb3 {[%clk 0:00:13.1]}
67. Nb1 {[%clk 0:00:13.8]} 67... Kc2 {[%clk 0:00:14]} 68. Na3+ {[%clk
0:00:13.6]} 68... Kb3 {[%clk 0:00:14.9]} 69. Nb1 {[%clk 0:00:13.5]} 69... Kc2
{[%clk 0:00:15.8]} 70. Na3+ {[%clk 0:00:13.7]} 70... Kc3 {[%clk 0:00:16.7]} 71.
Ke2 {[%clk 0:00:12]} 71... Kb3 {[%clk 0:00:17.6]} 72. Nb1 {[%clk 0:00:12.1]}
72... Ka2 {[%clk 0:00:18]} 73. Nd2 {[%clk 0:00:12.3]} 73... b1=Q {[%clk
0:00:17.6]} 74. Nxb1 {[%clk 0:00:12.5]} 1/2-1/2

[Event "*** Titled Tuesday Blitz"]
[Site "Chess.com"]
[Date "2020.04.21"]
[Round "1"]
[White "shyam"]
[Black "Nathan_Filgueiras"]
[Result "1-0"]
[WhiteElo "2662"]
[BlackElo "2337"]
[TimeControl "180+1"]
[EndTime "10:08:36 PDT"]
[Termination "shyam won by resignation"]

1. d4 {[%clk 0:03:00.9]} 1... Nf6 {[%clk 0:02:59.5]} 2. Nc3 {[%clk 0:03:00]}
2... d5 {[%clk 0:02:54.2]} 3. Bf4 {[%clk 0:02:59.6]} 3... e6 {[%clk 0:02:50.7]}
4. e3 {[%clk 0:02:57.7]} 4... Bb4 {[%clk 0:02:50.4]} 5. Ne2 {[%clk 0:02:40.5]}
5... O-O {[%clk 0:02:30.4]} 6. a3 {[%clk 0:02:39.5]} 6... Bd6 {[%clk 0:02:23.7]}
7. g3 {[%clk 0:02:28.9]} 7... Be7 {[%clk 0:02:09.8]} 8. Bg2 {[%clk 0:02:27.5]}
8... a6 {[%clk 0:02:05.8]} 9. O-O {[%clk 0:02:22.5]} 9... c5 {[%clk 0:02:02.5]}
10. e4 {[%clk 0:02:19.3]} 10... dxe4 {[%clk 0:01:53.8]} 11. Nxe4 {[%clk
0:02:20.2]} 11... Nxe4 {[%clk 0:01:48.9]} 12. Bxe4 {[%clk 0:02:21.1]} 12... Nc6
{[%clk 0:01:48.5]} 13. dxc5 {[%clk 0:02:14.2]} 13... Bxc5 {[%clk 0:01:45.6]} 14.
Qxd8 {[%clk 0:02:11.9]} 14... Rxd8 {[%clk 0:01:45.2]} 15. Rad1 {[%clk
0:02:12.5]} 15... Re8 {[%clk 0:01:31.5]} 16. Bd6 {[%clk 0:02:08]} 16... Bb6
{[%clk 0:01:28.9]} 17. c4 {[%clk 0:01:59.6]} 17... f5 {[%clk 0:00:53]} 18. Bxc6
{[%clk 0:01:56.4]} 18... bxc6 {[%clk 0:00:53.9]} 19. c5 {[%clk 0:01:57.3]} 19...
Bd8 {[%clk 0:00:52.4]} 20. f4 {[%clk 0:01:55.3]} 20... Bf6 {[%clk 0:00:51.9]}
21. Rd2 {[%clk 0:01:38.5]} 21... a5 {[%clk 0:00:47.7]} 22. Nd4 {[%clk
0:01:27.3]} 22... Bxd4+ {[%clk 0:00:41.1]} 23. Rxd4 {[%clk 0:01:28.2]} 23... a4
{[%clk 0:00:33.3]} 24. Rb4 {[%clk 0:01:22.4]} 24... Ba6 {[%clk 0:00:28.6]} 25.
Re1 {[%clk 0:01:16]} 25... Bb5 {[%clk 0:00:28.9]} 26. Kf2 {[%clk 0:01:16.4]}
26... Kf7 {[%clk 0:00:28.7]} 27. h3 {[%clk 0:01:16.1]} 27... g6 {[%clk
0:00:27.1]} 28. Ke3 {[%clk 0:01:15.9]} 28... Red8 {[%clk 0:00:18]} 29. Rg1
{[%clk 0:01:14.2]} 29... h5 {[%clk 0:00:16.8]} 30. Kd4 {[%clk 0:01:12.7]} 30...
Rg8 {[%clk 0:00:15.9]} 31. h4 {[%clk 0:01:05.1]} 31... Rge8 {[%clk 0:00:15.5]}
32. Ke5 {[%clk 0:01:05.5]} 32... Rad8 {[%clk 0:00:14.9]} 33. Rd1 {[%clk
0:01:05.3]} 33... Rd7 {[%clk 0:00:14.5]} 34. Rdd4 {[%clk 0:00:57.7]} 34... Ra8
{[%clk 0:00:13.3]} 35. Rxb5 {[%clk 0:00:54.9]} 35... cxb5 {[%clk 0:00:13.2]} 36.
c6 {[%clk 0:00:55.8]} 36... Rdd8 {[%clk 0:00:13.2]} 37. c7 {[%clk 0:00:51.1]}
37... Rd7 {[%clk 0:00:12.9]} 38. Rb4 {[%clk 0:00:50.2]} 38... Rc8 {[%clk
0:00:10.2]} 39. Rxb5 {[%clk 0:00:47.9]} 39... Rcxc7 {[%clk 0:00:10.4]} 40. Bxc7
{[%clk 0:00:48.8]} 40... Rxc7 {[%clk 0:00:11.3]} 41. Kd6 {[%clk 0:00:44.4]}
41... Rc2 {[%clk 0:00:09.1]} 42. Rb4 {[%clk 0:00:35.8]} 42... Rg2 {[%clk
0:00:07.7]} 43. Rxa4 {[%clk 0:00:29.5]} 43... Rxb2 {[%clk 0:00:07.8]} 44. Rb4
{[%clk 0:00:27.8]} 44... Ra2 {[%clk 0:00:07.8]} 45. Rb3 {[%clk 0:00:28.1]} 45...
Kf6 {[%clk 0:00:06.5]} 46. Rd3 {[%clk 0:00:28]} 46... Rc2 {[%clk 0:00:05]} 47.
Kd7 {[%clk 0:00:28.2]} 47... Rc4 {[%clk 0:00:04.6]} 48. Re3 {[%clk 0:00:27.9]}
48... Rc2 {[%clk 0:00:04.6]} 49. Rxe6+ {[%clk 0:00:27.7]} 49... Kf7 {[%clk
0:00:05.2]} 50. Re7+ {[%clk 0:00:28.6]} 50... Kf6 {[%clk 0:00:05.1]} 51. Re6+
{[%clk 0:00:29.5]} 51... Kf7 {[%clk 0:00:05.6]} 52. Re3 {[%clk 0:00:30.4]} 52...
Rd2+ {[%clk 0:00:05.5]} 53. Kc6 {[%clk 0:00:30.6]} 53... Ra2 {[%clk 0:00:06.4]}
54. Kb5 {[%clk 0:00:30.7]} 54... Kf6 {[%clk 0:00:06.6]} 55. a4 {[%clk
0:00:31.2]} 55... Rb2+ {[%clk 0:00:06.7]} 56. Ka6 {[%clk 0:00:31.2]} 56... Ra2
{[%clk 0:00:06.9]} 57. a5 {[%clk 0:00:31.7]} 57... Rb2 {[%clk 0:00:07.2]} 58.
Ka7 {[%clk 0:00:32]} 58... Ra2 {[%clk 0:00:07]} 59. a6 {[%clk 0:00:32.3]} 59...
Rb2 {[%clk 0:00:07.6]} 60. Rc3 {[%clk 0:00:32.4]} 60... Ke6 {[%clk 0:00:06.8]}
61. Rc6+ {[%clk 0:00:32.5]} 61... Kf7 {[%clk 0:00:07.1]} 62. Rb6 {[%clk
0:00:32.5]} 62... Re2 {[%clk 0:00:06.5]} 63. Kb7 {[%clk 0:00:32.8]} 63... Re7+
{[%clk 0:00:06.1]} 64. Kc6 {[%clk 0:00:33.3]} 64... Ke6 {[%clk 0:00:03.9]} 65.
Rb7 {[%clk 0:00:31.2]} 65... Re8 {[%clk 0:00:04.4]} 66. a7 {[%clk 0:00:31.8]}
66... Rc8+ {[%clk 0:00:04.5]} 67. Kb6 {[%clk 0:00:32.1]} 67... Ra8 {[%clk
0:00:04.5]} 68. Rb8 {[%clk 0:00:32.6]} 1-0

[Event "*** Titled Tuesday Blitz"]
[Site "Chess.com"]
[Date "2020.04.21"]
[Round "1"]
[White "Paralinch"]
[Black "Confer77"]
[Result "1-0"]
[WhiteElo "2965"]
[BlackElo "2468"]
[TimeControl "180+1"]
[EndTime "10:08:37 PDT"]
[Termination "Paralinch won by resignation"]

1. e4 {[%clk 0:03:00.9]} 1... e6 {[%clk 0:02:59.3]} 2. d4 {[%clk 0:03:00]} 2...
d5 {[%clk 0:02:59.6]} 3. exd5 {[%clk 0:03:00.9]} 3... exd5 {[%clk 0:02:59.7]} 4.
Nf3 {[%clk 0:03:01.6]} 4... Bd6 {[%clk 0:02:54.8]} 5. c4 {[%clk 0:03:01.5]} 5...
Nf6 {[%clk 0:02:47.1]} 6. Nc3 {[%clk 0:03:01.4]} 6... O-O {[%clk 0:02:46.9]} 7.
Bg5 {[%clk 0:03:01]} 7... Re8+ {[%clk 0:02:26.1]} 8. Be2 {[%clk 0:03:01.1]} 8...
dxc4 {[%clk 0:02:25.9]} 9. O-O {[%clk 0:03:01.3]} 9... h6 {[%clk 0:02:24.7]} 10.
Bh4 {[%clk 0:03:01.2]} 10... Bg4 {[%clk 0:02:16.8]} 11. Bxc4 {[%clk 0:03:00.3]}
11... Nc6 {[%clk 0:02:11.1]} 12. d5 {[%clk 0:02:54.7]} 12... Bxf3 {[%clk
0:02:00.4]} 13. Qxf3 {[%clk 0:02:48.8]} 13... Ne5 {[%clk 0:02:00.7]} 14. Qe2
{[%clk 0:02:49.2]} 14... Ng6 {[%clk 0:01:26.8]} 15. Bxf6 {[%clk 0:02:45.4]}
15... Qxf6 {[%clk 0:01:26.4]} 16. Qd3 {[%clk 0:02:28]} 16... Bxh2+ {[%clk
0:01:22.8]} 17. Kxh2 {[%clk 0:02:25.4]} 17... Qh4+ {[%clk 0:01:23.1]} 18. Kg1
{[%clk 0:02:18.7]} 18... Ne5 {[%clk 0:01:23.3]} 19. Qg3 {[%clk 0:02:12.2]} 19...
Qxg3 {[%clk 0:01:20.2]} 20. fxg3 {[%clk 0:02:13.1]} 20... Nxc4 {[%clk
0:01:20.8]} 21. Rf2 {[%clk 0:02:08.6]} 21... Rad8 {[%clk 0:01:17.4]} 22. Rd1
{[%clk 0:02:08.4]} 22... Re3 {[%clk 0:01:11.8]} 23. Kh2 {[%clk 0:02:07.6]} 23...
b6 {[%clk 0:01:07.5]} 24. Nb5 {[%clk 0:01:34]} 24... c6 {[%clk 0:01:03.7]} 25.
Nxa7 {[%clk 0:01:34]} 25... Rxd5 {[%clk 0:00:59.2]} 26. Rxd5 {[%clk 0:01:31.7]}
26... cxd5 {[%clk 0:01:00.1]} 27. Nc6 {[%clk 0:01:32.2]} 27... Re6 {[%clk
0:00:52.5]} 28. Nd4 {[%clk 0:01:30.6]} 28... Re4 {[%clk 0:00:52.8]} 29. Nc6
{[%clk 0:01:27.7]} 29... d4 {[%clk 0:00:49.9]} 30. b3 {[%clk 0:01:27.8]} 30...
Ne3 {[%clk 0:00:50]} 31. Kg1 {[%clk 0:01:08.9]} 31... Ng4 {[%clk 0:00:38.4]} 32.
Rf4 {[%clk 0:01:09]} 32... Re1+ {[%clk 0:00:37.8]} 33. Rf1 {[%clk 0:01:08.8]}
33... Re2 {[%clk 0:00:37.8]} 34. Nxd4 {[%clk 0:01:08.3]} 34... Rxa2 {[%clk
0:00:36.7]} 35. Re1 {[%clk 0:01:03.1]} 35... g6 {[%clk 0:00:34.1]} 36. Kf1
{[%clk 0:00:51.8]} 36... Rd2 {[%clk 0:00:32.9]} 37. Nf3 {[%clk 0:00:41.9]} 37...
Rf2+ {[%clk 0:00:31.3]} 38. Kg1 {[%clk 0:00:42.3]} 38... Rb2 {[%clk 0:00:31.9]}
39. Nd4 {[%clk 0:00:42.9]} 39... h5 {[%clk 0:00:31.2]} 40. Kf1 {[%clk
0:00:42.7]} 40... Rf2+ {[%clk 0:00:31.2]} 41. Kg1 {[%clk 0:00:43.1]} 41... Rd2
{[%clk 0:00:31.6]} 42. Nf3 {[%clk 0:00:43.4]} 42... Rd3 {[%clk 0:00:31.4]} 43.
Rb1 {[%clk 0:00:42]} 43... b5 {[%clk 0:00:27.6]} 44. b4 {[%clk 0:00:42.5]} 44...
Kg7 {[%clk 0:00:26.4]} 45. Kf1 {[%clk 0:00:40]} 45... Rc3 {[%clk 0:00:22.7]} 46.
Nd4 {[%clk 0:00:38.2]} 46... Rxg3 {[%clk 0:00:19.5]} 47. Nxb5 {[%clk 0:00:38.5]}
47... Ne3+ {[%clk 0:00:18.1]} 48. Kf2 {[%clk 0:00:38.7]} 48... h4 {[%clk
0:00:18.7]} 49. Nd6 {[%clk 0:00:36.1]} 49... Nxg2 {[%clk 0:00:16.1]} 50. b5
{[%clk 0:00:36.2]} 50... Nf4 {[%clk 0:00:16.6]} 51. b6 {[%clk 0:00:35.8]} 51...
Nd3+ {[%clk 0:00:17]} 52. Ke2 {[%clk 0:00:28.6]} 52... Nc5 {[%clk 0:00:17.2]}
53. Rc1 {[%clk 0:00:27.8]} 53... Nd7 {[%clk 0:00:11.3]} 54. b7 {[%clk
0:00:27.8]} 54... Rb3 {[%clk 0:00:11.9]} 55. Rc7 {[%clk 0:00:27.8]} 55... Nb8
{[%clk 0:00:09.5]} 56. Rc8 {[%clk 0:00:26.5]} 56... Na6 {[%clk 0:00:09.5]} 57.
Ra8 {[%clk 0:00:26.3]} 57... Nc5 {[%clk 0:00:05.9]} 58. b8=Q {[%clk 0:00:25.9]}
58... Rxb8 {[%clk 0:00:06.5]} 59. Rxb8 {[%clk 0:00:26.8]} 59... Ne6 {[%clk
0:00:06.4]} 60. Rb7 {[%clk 0:00:24.2]} 60... Ng5 {[%clk 0:00:06.5]} 61. Ke3
{[%clk 0:00:22.4]} 61... h3 {[%clk 0:00:06.6]} 62. Kf4 {[%clk 0:00:20.4]} 62...
h2 {[%clk 0:00:04.8]} 63. Rb1 {[%clk 0:00:19.9]} 63... Ne6+ {[%clk 0:00:05.1]}
64. Kg3 {[%clk 0:00:19.6]} 64... f5 {[%clk 0:00:05.7]} 65. Kxh2 {[%clk
0:00:18.7]} 65... Kf6 {[%clk 0:00:06.3]} 66. Rb6 {[%clk 0:00:17.8]} 66... g5
{[%clk 0:00:04.8]} 67. Kg3 {[%clk 0:00:17.3]} 67... f4+ {[%clk 0:00:04.5]} 68.
Kg4 {[%clk 0:00:17.3]} 68... Ke5 {[%clk 0:00:04.3]} 69. Nf7+ {[%clk 0:00:17.3]}
69... Ke4 {[%clk 0:00:04.7]} 70. Rxe6+ {[%clk 0:00:17]} 1-0

[Event "*** Titled Tuesday Blitz"]
[Site "Chess.com"]
[Date "2020.04.21"]
[Round "1"]
[White "MITerryble"]
[Black "krasavetc"]
[Result "1-0"]
[WhiteElo "2857"]
[BlackElo "2448"]
[TimeControl "180+1"]
[EndTime "10:08:42 PDT"]
[Termination "MITerryble won by checkmate"]

1. Nf3 {[%clk 0:03:00.1]} 1... Nf6 {[%clk 0:02:58.8]} 2. d4 {[%clk 0:02:59.9]}
2... g6 {[%clk 0:02:58.1]} 3. Bg5 {[%clk 0:02:59.8]} 3... Bg7 {[%clk 0:02:59]}
4. c3 {[%clk 0:03:00.3]} 4... O-O {[%clk 0:02:59.1]} 5. Nbd2 {[%clk 0:03:00.9]}
5... d5 {[%clk 0:02:56.8]} 6. e3 {[%clk 0:03:01]} 6... c6 {[%clk 0:02:57.2]} 7.
Be2 {[%clk 0:03:00.8]} 7... Bg4 {[%clk 0:02:57.5]} 8. Qb3 {[%clk 0:03:00.3]}
8... Qb6 {[%clk 0:02:56.3]} 9. h3 {[%clk 0:03:00.4]} 9... Bxf3 {[%clk
0:02:55.7]} 10. Bxf3 {[%clk 0:03:01.3]} 10... Qxb3 {[%clk 0:02:55.3]} 11. axb3
{[%clk 0:03:02.2]} 11... Nbd7 {[%clk 0:02:54.6]} 12. b4 {[%clk 0:03:02.4]} 12...
a6 {[%clk 0:02:53.9]} 13. Nb3 {[%clk 0:03:02.5]} 13... Rfe8 {[%clk 0:02:47.5]}
14. O-O {[%clk 0:02:53.5]} 14... e5 {[%clk 0:02:46.8]} 15. Bh4 {[%clk
0:02:52.9]} 15... e4 {[%clk 0:02:30.2]} 16. Be2 {[%clk 0:02:52.7]} 16... Bf8
{[%clk 0:02:28.5]} 17. Bg3 {[%clk 0:02:51]} 17... Re6 {[%clk 0:02:21.1]} 18. Nc5
{[%clk 0:02:47]} 18... Bxc5 {[%clk 0:02:16.3]} 19. bxc5 {[%clk 0:02:47.2]} 19...
Ne8 {[%clk 0:02:04.7]} 20. Ra4 {[%clk 0:02:46.6]} 20... Ng7 {[%clk 0:01:59]} 21.
Rb4 {[%clk 0:02:45]} 21... Ra7 {[%clk 0:01:58.1]} 22. Ra1 {[%clk 0:02:45.5]}
22... h5 {[%clk 0:01:53.5]} 23. Ra3 {[%clk 0:02:44.7]} 23... Nf5 {[%clk
0:01:53.8]} 24. Bh2 {[%clk 0:02:42]} 24... a5 {[%clk 0:01:25.2]} 25. Rba4 {[%clk
0:02:41.5]} 25... b6 {[%clk 0:01:25.5]} 26. cxb6 {[%clk 0:02:17.5]} 26... Nxb6
{[%clk 0:01:26.4]} 27. Rxa5 {[%clk 0:02:18]} 27... Rxa5 {[%clk 0:01:26.6]} 28.
Rxa5 {[%clk 0:02:18.9]} 28... Re7 {[%clk 0:01:12.8]} 29. b4 {[%clk 0:02:06.6]}
29... Rb7 {[%clk 0:01:09.7]} 30. Be5 {[%clk 0:02:04.9]} 30... Kf8 {[%clk
0:01:08]} 31. g4 {[%clk 0:02:03.6]} 31... hxg4 {[%clk 0:01:05.1]} 32. hxg4
{[%clk 0:02:04.5]} 32... Nh4 {[%clk 0:01:04.7]} 33. Bf6 {[%clk 0:02:03.6]} 33...
Nf3+ {[%clk 0:01:02.5]} 34. Bxf3 {[%clk 0:02:04]} 34... exf3 {[%clk 0:01:03.4]}
35. b5 {[%clk 0:01:53.7]} 35... cxb5 {[%clk 0:00:59.2]} 36. Rxb5 {[%clk
0:01:54.6]} 36... Ke8 {[%clk 0:00:59.4]} 37. Kh2 {[%clk 0:01:42.1]} 37... Kd7
{[%clk 0:00:59]} 38. Kg3 {[%clk 0:01:28.9]} 38... Kc6 {[%clk 0:00:59.1]} 39.
Rc5+ {[%clk 0:01:29.1]} 39... Kd6 {[%clk 0:00:58.7]} 40. Be5+ {[%clk 0:01:29.3]}
40... Ke6 {[%clk 0:00:58]} 41. Rc6+ {[%clk 0:01:23.2]} 41... Kd7 {[%clk
0:00:55.7]} 42. Rd6+ {[%clk 0:01:22.3]} 42... Ke7 {[%clk 0:00:55.9]} 43. Kxf3
{[%clk 0:01:22.6]} 43... Nc4 {[%clk 0:00:54.3]} 44. Rxd5 {[%clk 0:01:22.8]}
44... Rb2 {[%clk 0:00:54.8]} 45. Rc5 {[%clk 0:01:14.5]} 45... Nd2+ {[%clk
0:00:54.7]} 46. Kf4 {[%clk 0:01:15]} 46... Nb3 {[%clk 0:00:52.6]} 47. Rc7+
{[%clk 0:01:14.2]} 47... Ke6 {[%clk 0:00:52]} 48. f3 {[%clk 0:01:06.4]} 48...
Nc1 {[%clk 0:00:51.9]} 49. Rc6+ {[%clk 0:00:52.4]} 49... Kd7 {[%clk 0:00:50.7]}
50. Rf6 {[%clk 0:00:47.3]} 50... Ke7 {[%clk 0:00:50]} 51. c4 {[%clk 0:00:45.5]}
51... Ne2+ {[%clk 0:00:44.9]} 52. Ke4 {[%clk 0:00:45.2]} 52... Nc3+ {[%clk
0:00:41.5]} 53. Kd3 {[%clk 0:00:43.4]} 53... Nd1 {[%clk 0:00:39.8]} 54. d5
{[%clk 0:00:28.6]} 54... Nf2+ {[%clk 0:00:38.3]} 55. Kc3 {[%clk 0:00:26]} 55...
Re2 {[%clk 0:00:37.9]} 56. d6+ {[%clk 0:00:24.3]} 56... Ke8 {[%clk 0:00:38]} 57.
Bd4 {[%clk 0:00:23.3]} 57... Nd1+ {[%clk 0:00:35.8]} 58. Kd3 {[%clk 0:00:22.8]}
58... Ra2 {[%clk 0:00:36.3]} 59. c5 {[%clk 0:00:22.4]} 59... Ra3+ {[%clk
0:00:33.4]} 60. Kc4 {[%clk 0:00:22.2]} 60... Ra2 {[%clk 0:00:30.5]} 61. c6
{[%clk 0:00:20.9]} 61... Rc2+ {[%clk 0:00:30.7]} 62. Kd5 {[%clk 0:00:19.9]}
62... Nf2 {[%clk 0:00:31.1]} 63. d7+ {[%clk 0:00:19.2]} 63... Ke7 {[%clk
0:00:31]} 64. Rxf7+ {[%clk 0:00:19.4]} 64... Kxf7 {[%clk 0:00:31.1]} 65. d8=Q
{[%clk 0:00:19.9]} 65... Nd3 {[%clk 0:00:31.2]} 66. Qd7+ {[%clk 0:00:19.3]}
66... Kf8 {[%clk 0:00:31.7]} 67. Qg7+ {[%clk 0:00:17.9]} 67... Ke8 {[%clk
0:00:31.8]} 68. Qxg6+ {[%clk 0:00:17.4]} 68... Kd8 {[%clk 0:00:32]} 69. Qd6+
{[%clk 0:00:15.7]} 69... Ke8 {[%clk 0:00:31.5]} 70. Qd7+ {[%clk 0:00:16]} 70...
Kf8 {[%clk 0:00:31.7]} 71. Qg7+ {[%clk 0:00:15.4]} 71... Ke8 {[%clk 0:00:31.8]}
72. Qg8+ {[%clk 0:00:15.6]} 72... Ke7 {[%clk 0:00:31.9]} 73. Qh7+ {[%clk
0:00:11.5]} 73... Ke8 {[%clk 0:00:31.8]} 74. Qxd3 {[%clk 0:00:10.4]} 74... Ra2
{[%clk 0:00:31.6]} 75. Ke6 {[%clk 0:00:10.2]} 75... Kd8 {[%clk 0:00:26.4]} 76.
Bb6+ {[%clk 0:00:09.7]} 76... Kc8 {[%clk 0:00:25.4]} 77. Qd8# {[%clk 0:00:10.6]}
1-0